bitfinex/quotes_SOLUSD_20230110
["timestamp","ask_amount","ask_price","bid_price","bid_amount"]
[1673312381535,64.15609111,16.557,16.537,20.0]
[1673312381846,62.32,16.557,16.538,65.37]
[1673312382067,17.0,16.557,16.539,20.0]
[1673312382277,45.32,16.556,16.54,20.0]
[1673312382593,17.0,16.555,16.538,20.0]
[1673312382896,17.0,16.555,16.539,45.37]
[1673312383114,20.0,16.556,16.54,42.1]
[1673312383321,20.0,16.556,16.541,45.36]
[1673312383841,20.0,16.558,16.541,45.36]
[1673312384054,115.2882,16.559,16.541,45.36]
[1673312384268,115.2882,16.559,16.541,65.36]
[1673312384996,17.0,16.558,16.541,65.36]
[1673312385402,45.3,16.562,16.542,20.0]
[1673312385614,20.0,16.566,16.55,22.1]
[1673312385925,20.0,16.558,16.551,45.33]
[1673312386156,112.7658,16.566,16.551,60.00189474]
[1673312386364,112.7658,16.566,16.552,14.67189474]
[1673312386784,112.7658,16.566,16.553,45.33]
[1673312387192,112.7658,16.566,16.553,20.0]
[1673312387624,45.27,16.573,16.553,34.67189474]
[1673312387840,113.899,16.573,16.554,65.32]
[1673312388027,45.26,16.577,16.56,22.1]
[1673312388242,45.26,16.579,16.561,65.3]
[1673312388694,20.0,16.577,16.561,65.3]
[1673312388899,65.26,16.577,16.561,20.0]
[1673312389324,45.26,16.577,16.561,20.0]
[1673312389528,159.7614,16.578,16.561,34.67189474]
[1673312389852,159.7614,16.578,16.562,20.0]
[1673312390356,114.5014,16.578,16.562,20.0]
[1673312390571,114.5014,16.578,16.562,65.3]
[1673312390787,45.25,16.58,16.563,15.1683006]
[1673312391120,108.4671,16.585,16.565,20.0]
[1673312391310,108.4671,16.585,16.566,45.29]
[1673312391516,108.4671,16.585,16.568,20.0]
[1673312391726,108.4671,16.585,16.57,20.0]
[1673312393200,45.24,16.586,16.57,20.0]
[1673312393411,45.22,16.592,16.572,20.0]
[1673312393732,157.8899,16.592,16.572,20.0]
[1673312394147,157.8899,16.592,16.573,15.1683006]
[1673312394362,20.0,16.591,16.572,20.0]
[1673312394581,45.23,16.59,16.572,20.0]
[1673312394777,45.23,16.59,16.57,22.0]
[1673312394990,20.0,16.589,16.568,20.0]
[1673312395200,45.23,16.588,16.569,20.0]
[1673312395405,17.0,16.58,16.569,20.0]
[1673312397000,17.0,16.58,16.569,19.0]
[1673312397419,65.24,16.586,16.569,19.0]
[1673312399953,45.22,16.591,16.57,102.13489017]
[1673312400165,45.21,16.595,16.571,20.0]
[1673312400344,45.21,16.595,16.573,20.0]
[1673312400681,45.21,16.597,16.575,20.0]
[1673312400868,51.2838512,16.599,16.58,110.45]
[1673312401086,6.0838512,16.599,16.581,85.25]
[1673312401294,6.0838512,16.599,16.581,100.00489017]
[1673312401522,6.0838512,16.599,16.582,20.0]
[1673312401836,6.0838512,16.599,16.583,79.99489017]
[1673312402152,6.0838512,16.599,16.584,34.75489017]
[1673312402359,6.0838512,16.599,16.585,20.0]
[1673312402552,281.7291081,16.599,16.583,45.24]
[1673312402762,326.9291081,16.599,16.581,45.25]
[1673312402984,20.0,16.598,16.579,20.0]
[1673312403189,45.21,16.597,16.579,20.0]
[1673312403388,119.8523,16.596,16.579,20.0]
[1673312403602,119.8523,16.596,16.577,65.26]
[1673312403832,20.0,16.594,16.576,503.2740122]
[1673312404045,45.22,16.593,16.576,503.2740122]
[1673312404446,320.8652569,16.593,16.576,503.2740122]
[1673312404864,17.0,16.592,16.577,20.0]
[1673312405192,17.0,16.592,16.578,20.0]
[1673312405607,275.6452569,16.593,16.578,34.75489017]
[1673312405825,275.6452569,16.593,16.578,20.0]
[1673312406647,20.0,16.591,16.577,20.0]
[1673312406867,62.23,16.59,16.577,20.0]
[1673312408147,20.0,16.589,16.577,20.0]
[1673312408338,45.23,16.588,16.577,19.69231]
[1673312408551,45.23,16.588,16.562,615.45083402]
[1673312408552,320.8752569,16.588,16.562,615.45083402]
[1673312408880,117.6845437,16.587,16.562,14.75489017]
[1673312409070,45.24,16.586,16.562,14.75489017]
[1673312409280,1.58475406,16.585,16.563,115.6069]
[1673312409606,1.60607112,16.583,16.564,20.0]
[1673312409809,45.25,16.582,16.564,20.0]
[1673312410020,20.0,16.581,16.564,20.0]
[1673312410230,45.25,16.58,16.564,20.0]
[1673312410661,1.84519783,16.579,16.553,135.6069]
[1673312410877,45.26,16.578,16.553,135.6069]
[1673312411065,1.51421863,16.576,16.553,135.6069]
[1673312411271,45.27,16.575,16.554,20.0]
[1673312411482,45.26,16.576,16.554,20.0]
[1673312411714,20.0,16.574,16.554,20.0]
[1673312411915,45.27,16.573,16.554,20.0]
[1673312412544,195.20237,16.573,16.554,20.0]
[1673312412871,20.0,16.572,16.553,115.6069]
[1673312413085,47.06017876,16.571,16.553,115.6069]
[1673312413689,47.06017876,16.571,16.549,20.0]
[1673312413899,47.06017876,16.571,16.54,211.15464841]
[1673312413900,20.0,16.57,16.545,114.2919]
[1673312414220,47.42125953,16.569,16.545,114.2919]
[1673312414426,2.14125953,16.567,16.545,114.2919]
[1673312414633,2.16340955,16.565,16.545,114.2919]
[1673312414847,22.17019506,16.563,16.545,114.2919]
[1673312415086,20.0,16.561,16.545,114.2919]
[1673312415296,45.31,16.56,16.545,114.2919]
[1673312415516,2.29068566,16.56,16.545,114.2919]
[1673312415725,45.31,16.56,16.546,20.0]
[1673312416138,2.00381943,16.563,16.547,20.0]
[1673312416358,2.00381943,16.564,16.548,20.0]
[1673312416659,20.0,16.562,16.548,20.0]
[1673312417196,20.0,16.562,16.547,20.0]
[1673312417531,65.3,16.563,16.548,20.0]
[1673312418159,2.03205817,16.562,16.546,40.0]
[1673312418467,20.0,16.562,16.546,20.0]
[1673312418779,22.28742308,16.56,16.53,110.02]
[1673312418997,45.31,16.559,16.537,20.0]
[1673312419520,20.0,16.558,16.537,20.0]
[1673312419720,20.0,16.556,16.537,20.0]
[1673312420249,45.32,16.557,16.537,20.0]
[1673312420447,45.32,16.557,16.539,20.0]
[1673312420763,195.25237,16.557,16.539,20.0]
[1673312420975,20.0,16.556,16.537,20.0]
[1673312421400,20.0,16.556,16.536,117.7084]
[1673312421614,45.32,16.555,16.536,117.7084]
[1673312421824,20.0,16.554,16.537,20.0]
[1673312422238,45.33,16.553,16.537,20.0]
[1673312422672,20.0,16.552,16.537,20.0]
[1673312423514,45.33,16.551,16.537,20.0]
[1673312423713,20.0,16.55,16.537,20.0]
[1673312424040,65.33,16.552,16.537,20.0]
[1673312424247,149.93237,16.553,16.537,20.0]
[1673312424460,45.33,16.552,16.534,109.6056]
[1673312424661,195.26237,16.552,16.535,20.0]
[1673312424871,20.0,16.551,16.535,20.0]
[1673312425078,45.33,16.55,16.535,20.0]
[1673312425601,18.09964779,16.549,16.52,110.57]
[1673312425805,45.34,16.548,16.525,109.6056]
[1673312426435,45.34,16.548,16.52,22.24]
[1673312426665,131.8893,16.547,16.516,109.6056]
[1673312426864,65.35,16.546,16.516,109.6056]
[1673312427079,65.35,16.546,16.52,44.01]
[1673312427296,65.35,16.546,16.521,20.0]
[1673312427514,65.35,16.546,16.521,101.52550598]
[1673312427699,65.35,16.546,16.522,14.40385664]
[1673312427908,65.35,16.546,16.523,37.0]
[1673312428119,65.35,16.546,16.524,132.6925]
[1673312428453,65.35,16.546,16.526,20.0]
[1673312428765,215.28237,16.546,16.527,20.0]
[1673312429183,215.28237,16.546,16.526,20.0]
[1673312430131,215.28237,16.546,16.525,20.0]
[1673312430745,20.0,16.545,16.517,6.0838512]
[1673312430970,236.49093,16.544,16.517,6.0838512]
[1673312431177,20.0,16.543,16.517,6.0838512]
[1673312431398,65.36,16.542,16.517,6.0838512]
[1673312431601,20.0,16.541,16.52,21.91]
[1673312431808,45.36,16.54,16.52,21.91]
[1673312432004,45.36,16.54,16.521,20.0]
[1673312432651,45.36,16.54,16.52,21.91]
[1673312432864,195.29237,16.54,16.52,21.91]
[1673312433195,20.0,16.539,16.52,21.91]
[1673312433496,45.37,16.538,16.52,21.91]
[1673312433723,45.37,16.538,16.518,20.0]
[1673312433914,45.37,16.538,16.519,20.0]
[1673312433915,20.0,16.537,16.519,20.0]
[1673312434129,45.37,16.536,16.519,20.0]
[1673312434549,20.0,16.535,16.518,20.0]
[1673312434738,45.38,16.534,16.518,20.0]
[1673312435158,169.93237,16.535,16.518,20.0]
[1673312435389,169.93237,16.535,16.519,20.0]
[1673312435390,149.93237,16.535,16.519,20.0]
[1673312435598,45.38,16.534,16.519,20.0]
[1673312435916,45.38,16.534,16.52,22.1]
[1673312436119,149.93237,16.535,16.52,22.1]
[1673312436337,149.93237,16.535,16.521,20.0]
[1673312437261,149.93237,16.535,16.52,22.1]
[1673312437693,45.38,16.534,16.52,22.1]
[1673312437904,45.38,16.534,16.518,20.0]
[1673312438114,65.38,16.534,16.518,20.0]
[1673312438539,20.0,16.533,16.518,20.0]
[1673312438857,45.38,16.532,16.518,20.0]
[1673312440637,265.14437,16.533,16.518,20.0]
[1673312442220,45.38,16.532,16.518,20.0]
[1673312442968,195.31237,16.532,16.518,20.0]
[1673312447364,149.93237,16.532,16.518,20.0]
[1673312447573,195.31237,16.532,16.518,20.0]
[1673312448855,149.93237,16.532,16.518,20.0]
[1673312449383,149.93237,16.532,16.52,110.5]
[1673312449575,81.76777,16.532,16.521,57.0]
[1673312449908,160.0448,16.546,16.521,94.92161398]
[1673312450115,160.0448,16.546,16.53,22.1]
[1673312450325,45.35,16.546,16.53,22.1]
[1673312450545,45.34,16.549,16.53,22.1]
[1673312450733,160.0248,16.55,16.531,17.0]
[1673312451489,160.0248,16.55,16.532,20.0]
[1673312452836,160.0248,16.55,16.533,17.0]
[1673312453805,20.0,16.549,16.533,17.0]
[1673312454117,45.34,16.548,16.53,22.1]
[1673312454306,45.34,16.548,16.531,17.0]
[1673312455044,45.33,16.55,16.532,20.0]
[1673312455254,45.33,16.55,16.533,20.0]
[1673312455465,45.33,16.55,16.533,37.0]
[1673312455679,45.33,16.55,16.534,20.0]
[1673312455878,45.33,16.55,16.53,110.82]
[1673312456088,20.0,16.549,16.53,22.26]
[1673312456421,45.34,16.548,16.53,22.26]
[1673312458615,20.0,16.547,16.53,22.26]
[1673312458825,45.35,16.546,16.528,20.0]
[1673312459040,20.0,16.545,16.529,20.0]
[1673312459251,45.35,16.544,16.53,20.0]
[1673312459455,45.35,16.545,16.53,20.0]
[1673312459875,63.44964779,16.545,16.529,20.0]
[1673312460311,45.35,16.545,16.529,20.0]
[1673312460942,20.0,16.544,16.529,20.0]
[1673312461138,45.35,16.543,16.524,20.0]
[1673312461347,45.35,16.543,16.525,20.0]
[1673312461560,45.35,16.543,16.526,20.0]
[1673312461785,20.0,16.541,16.526,20.0]
[1673312462100,45.36,16.54,16.526,20.0]
[1673312462303,65.36,16.54,16.52,22.29]
[1673312462519,20.0,16.539,16.521,20.0]
[1673312462705,20.0,16.537,16.521,20.0]
[1673312462920,45.37,16.536,16.521,20.0]
[1673312463131,45.37,16.536,16.52,22.29]
[1673312464507,45.37,16.537,16.522,20.0]
[1673312464836,45.37,16.537,16.52,22.29]
[1673312465259,45.37,16.537,16.521,20.0]
[1673312466294,45.37,16.537,16.522,20.0]
[1673312466730,65.37,16.537,16.522,20.0]
[1673312466937,45.37,16.537,16.522,20.0]
[1673312467466,65.37,16.537,16.521,20.0]
[1673312467786,65.37,16.537,16.519,20.0]
[1673312468096,20.0,16.535,16.519,20.0]
[1673312468406,45.38,16.534,16.519,20.0]
[1673312468618,45.37,16.537,16.519,20.0]
[1673312469237,58.09964779,16.536,16.517,6.0838512]
[1673312469440,20.0,16.534,16.517,6.0838512]
[1673312469652,174.7935,16.533,16.517,6.0838512]
[1673312470178,37.0,16.532,16.517,6.0838512]
[1673312470386,65.39,16.531,16.517,6.0838512]
[1673312470597,20.0,16.529,16.517,6.0838512]
[1673312470831,62.4,16.528,16.517,6.0838512]
[1673312482081,20.0,16.527,16.517,6.0838512]
[1673312482423,45.4,16.526,16.517,6.0838512]
[1673312482603,21.77420711,16.525,16.5,110.68]
[1673312482810,45.41,16.524,16.5,110.68]
[1673312483025,18.78006859,16.523,16.5,110.68]
[1673312483247,65.41,16.522,16.5,110.68]
[1673312483462,128.5629,16.521,16.5,110.68]
[1673312483651,128.5629,16.521,16.502,40.70440665]
[1673312484195,128.5629,16.521,16.503,20.0]
[1673312484387,20.0,16.52,16.503,20.0]
[1673312484598,1.60472893,16.518,16.504,40.70440665]
[1673312484804,17.0,16.519,16.501,20.0]
[1673312484805,45.43,16.517,16.501,20.0]
[1673312485131,17.0,16.516,16.503,20.0]
[1673312485332,45.43,16.515,16.503,20.0]
[1673312485667,17.0,16.514,16.492,6.0838512]
[1673312485879,45.44,16.513,16.492,6.0838512]
[1673312486079,17.0,16.515,16.492,6.0838512]
[1673312486080,17.0,16.512,16.493,20.0]
[1673312486287,45.44,16.511,16.493,20.0]
[1673312486501,20.0,16.51,16.493,20.0]
[1673312486712,45.45,16.509,16.493,20.0]
[1673312486932,45.44,16.512,16.493,20.0]
[1673312487338,45.44,16.512,16.5,22.1]
[1673312487549,45.43,16.514,16.5,22.1]
[1673312487760,45.43,16.514,16.501,20.0]
[1673312488087,45.43,16.517,16.501,20.0]
[1673312488294,45.42,16.519,16.501,20.0]
[1673312488613,1.56687513,16.518,16.502,37.0]
[1673312488929,45.43,16.517,16.502,37.0]
[1673312489117,45.42,16.519,16.502,37.0]
[1673312489751,20.0,16.527,16.51,22.1]
[1673312489960,108.2197,16.535,16.511,20.0]
[1673312490178,108.2197,16.535,16.511,60.92111857]
[1673312490395,20.0,16.534,16.512,82.84122639]
[1673312490589,45.38,16.532,16.512,132.01717163]
[1673312490805,45.38,16.532,16.513,95.01717163]
[1673312491014,45.38,16.532,16.52,21.99]
[1673312491223,45.38,16.534,16.521,20.0]
[1673312491439,108.2197,16.535,16.521,20.0]
[1673312491651,108.2197,16.535,16.522,20.0]
[1673312491860,45.38,16.534,16.522,20.0]
[1673312492060,45.38,16.532,16.522,20.0]
[1673312492270,45.38,16.532,16.52,21.99]
[1673312492500,45.38,16.532,16.515,20.0]
[1673312492707,20.0,16.531,16.51,21.91]
[1673312492909,20.0,16.531,16.511,20.0]
[1673312492910,65.39,16.53,16.511,20.0]
[1673312493119,20.0,16.529,16.512,20.0]
[1673312493330,45.4,16.528,16.512,20.0]
[1673312493856,45.4,16.528,16.513,17.0]
[1673312494071,45.39,16.529,16.513,17.0]
[1673312494917,154.7935,16.533,16.514,20.0]
[1673312495116,109.4135,16.533,16.515,20.0]
[1673312495331,45.38,16.532,16.52,22.1]
[1673312495535,45.38,16.532,16.521,20.0]
[1673312496478,109.4135,16.533,16.521,20.0]
[1673312497559,45.38,16.532,16.521,20.0]
[1673312498802,109.4135,16.533,16.521,20.0]
[1673312501744,20.0,16.532,16.521,20.0]
[1673312502077,45.39,16.531,16.521,20.0]
[1673312504059,45.38,16.532,16.521,20.0]
[1673312504275,109.4135,16.533,16.521,20.0]
[1673312504690,45.38,16.532,16.521,20.0]
[1673312505330,109.4135,16.533,16.521,20.0]
[1673312508046,20.0,16.532,16.521,20.0]
[1673312508483,65.39,16.531,16.51,22.24]
[1673312508893,20.0,16.53,16.51,22.24]
[1673312509101,65.39,16.529,16.51,22.24]
[1673312509303,20.0,16.528,16.509,119.6124]
[1673312509517,45.4,16.527,16.509,119.6124]
[1673312509847,20.0,16.525,16.509,119.6124]
[1673312510062,154.6469,16.524,16.503,82.53508957]
[1673312510691,20.0,16.523,16.504,20.0]
[1673312510891,45.41,16.522,16.504,20.0]
[1673312511095,45.41,16.522,16.505,20.0]
[1673312511311,45.41,16.522,16.505,62.20122639]
[1673312511523,45.41,16.522,16.506,20.0]
[1673312511835,65.41,16.523,16.507,37.0]
[1673312512046,45.41,16.523,16.508,20.0]
[1673312512365,45.41,16.523,16.509,20.0]
[1673312512887,20.0,16.522,16.509,20.0]
[1673312513096,45.41,16.521,16.507,20.0]
[1673312513730,45.41,16.521,16.506,20.0]
[1673312514143,45.41,16.521,16.5,130.69]
[1673312514144,20.0,16.52,16.5,22.29]
[1673312514360,45.42,16.519,16.5,22.29]
[1673312514783,20.0,16.518,16.5,22.29]
[1673312514990,45.43,16.517,16.5,22.29]
[1673312515214,20.0,16.516,16.499,20.0]
[1673312515406,157.0087,16.515,16.499,20.0]
[1673312515825,111.5787,16.515,16.499,20.0]
[1673312516684,111.5787,16.515,16.5,17.0]
[1673312516878,45.43,16.514,16.5,17.0]
[1673312517082,45.43,16.514,16.501,20.0]
[1673312517295,45.43,16.514,16.5,20.0]
[1673312517730,45.42,16.519,16.5,42.1]
[1673312517933,271.5327,16.524,16.51,21.99]
[1673312518155,271.5327,16.524,16.511,20.0]
[1673312519203,20.0,16.523,16.511,20.0]
[1673312519396,20.0,16.523,16.503,117.9064]
[1673312519397,45.41,16.522,16.503,117.9064]
[1673312519730,20.0,16.52,16.503,117.9064]
[1673312519930,45.42,16.519,16.5,21.94]
[1673312520253,20.0,16.518,16.501,20.0]
[1673312520468,20.0,16.516,16.501,20.0]
[1673312520675,164.4239,16.515,16.501,20.0]
[1673312521087,164.4239,16.515,16.5,21.94]
[1673312522146,164.4239,16.515,16.501,20.0]
[1673312522882,17.0,16.514,16.501,20.0]
[1673312523099,45.44,16.513,16.501,20.0]
[1673312523407,17.0,16.512,16.501,20.0]
[1673312523601,17.0,16.512,16.496,20.0]
[1673312523602,45.44,16.511,16.496,20.0]
[1673312524788,45.44,16.511,16.497,20.0]
[1673312524999,45.44,16.511,16.499,20.0]
[1673312525212,45.44,16.511,16.5,20.0]
[1673312525405,17.0,16.51,16.5,20.0]
[1673312525821,17.0,16.511,16.5,20.0]
[1673312526140,45.44,16.513,16.5,20.0]
[1673312526141,17.0,16.512,16.5,20.0]
[1673312526354,45.44,16.511,16.5,20.0]
[1673312526550,17.0,16.51,16.5,20.0]
[1673312526766,17.0,16.51,16.498,20.0]
[1673312527199,45.44,16.512,16.498,20.0]
[1673312527401,45.44,16.513,16.498,20.0]
[1673312528136,45.44,16.513,16.499,17.0]
[1673312528351,45.44,16.513,16.5,20.0]
[1673312528777,45.44,16.513,16.501,37.0]
[1673312528985,154.7212,16.514,16.502,20.0]
[1673312530467,45.43,16.514,16.502,20.0]
[1673312530656,45.42,16.519,16.503,17.0]
[1673312530867,162.5464,16.519,16.503,17.0]
[1673312531088,20.0,16.518,16.502,20.0]
[1673312531410,20.0,16.513,16.5,20.0]
[1673312531624,20.0,16.513,16.501,17.0]
[1673312531831,65.43,16.514,16.502,20.0]
[1673312532443,45.43,16.514,16.502,20.0]
[1673312532656,45.43,16.517,16.502,20.0]
[1673312533305,20.0,16.516,16.502,20.0]
[1673312533499,164.4239,16.515,16.502,20.0]
[1673312535307,20.0,16.514,16.502,20.0]
[1673312536141,45.44,16.513,16.502,20.0]
[1673312536334,20.0,16.512,16.502,20.0]
[1673312536554,45.44,16.511,16.497,20.0]
[1673312536865,45.44,16.511,16.498,20.0]
[1673312537068,45.44,16.511,16.499,20.0]
[1673312537285,45.44,16.513,16.499,20.0]
[1673312538766,45.43,16.514,16.501,20.0]
[1673312538980,45.43,16.514,16.502,20.0]
[1673312539586,45.43,16.514,16.501,20.0]
[1673312541916,65.43,16.514,16.501,20.0]
[1673312542327,118.9939,16.515,16.501,20.0]
[1673312542542,45.41,16.522,16.503,20.0]
[1673312542867,155.5915,16.523,16.505,20.0]
[1673312543076,155.5915,16.523,16.506,20.0]
[1673312543293,155.5915,16.523,16.508,20.0]
[1673312543811,155.5915,16.523,16.509,37.0]
[1673312545184,45.41,16.523,16.51,22.1]
[1673312545377,45.39,16.531,16.511,40.0]
[1673312545705,156.7874,16.531,16.511,40.0]
[1673312545896,156.7874,16.531,16.513,20.0]
[1673312546350,20.0,16.53,16.512,17.0]
[1673312546529,45.39,16.529,16.512,17.0]
[1673312546740,20.0,16.528,16.512,17.0]
[1673312546945,45.4,16.527,16.512,17.0]
[1673312547784,20.0,16.53,16.512,17.0]
[1673312547785,45.39,16.529,16.512,17.0]
[1673312547999,20.0,16.528,16.511,20.0]
[1673312548210,45.4,16.527,16.511,20.0]
[1673312548421,45.4,16.527,16.512,17.0]
[1673312548950,45.39,16.529,16.513,20.0]
[1673312549276,20.0,16.528,16.513,20.0]
[1673312549474,45.4,16.527,16.514,17.0]
[1673312550151,20.0,16.528,16.514,17.0]
[1673312550654,45.4,16.527,16.514,17.0]
[1673312551818,45.4,16.527,16.511,40.0]
[1673312552035,111.3974,16.531,16.511,40.0]
[1673312552036,111.3974,16.531,16.514,42.20122639]
[1673312552251,111.3974,16.531,16.515,37.0]
[1673312552443,45.39,16.53,16.515,17.0]
[1673312552770,45.39,16.53,16.516,20.0]
[1673312553194,45.39,16.53,16.511,20.0]
[1673312553592,20.0,16.529,16.511,20.0]
[1673312553808,45.4,16.528,16.511,20.0]
[1673312554143,45.4,16.528,16.512,20.0]
[1673312554448,20.0,16.527,16.509,40.0]
[1673312554666,45.4,16.526,16.509,40.0]
[1673312554858,45.4,16.526,16.509,20.0]
[1673312555070,45.4,16.526,16.508,20.0]
[1673312555279,20.0,16.525,16.508,20.0]
[1673312555497,45.41,16.524,16.508,20.0]
[1673312555911,277.3591,16.524,16.508,20.0]
[1673312556132,277.3591,16.524,16.504,20.0]
[1673312556325,20.0,16.523,16.504,20.0]
[1673312556538,45.41,16.522,16.504,20.0]
[1673312557187,20.0,16.521,16.502,20.0]
[1673312557389,45.42,16.52,16.502,20.0]
[1673312557617,20.0,16.519,16.502,20.0]
[1673312557815,45.42,16.518,16.502,20.0]
[1673312558008,62.42,16.518,16.502,20.0]
[1673312558953,62.42,16.518,16.503,20.0]
[1673312559170,62.42,16.518,16.504,20.0]
[1673312560861,45.42,16.518,16.505,37.0]
[1673312561076,45.41,16.523,16.506,20.0]
[1673312561266,45.41,16.523,16.507,37.0]
[1673312561472,45.41,16.523,16.508,20.0]
[1673312561682,45.41,16.523,16.509,37.0]
[1673312562309,17.0,16.522,16.509,37.0]
[1673312562529,45.41,16.523,16.509,37.0]
[1673312563996,37.0,16.522,16.509,37.0]
[1673312564544,37.0,16.522,16.509,20.0]
[1673312564729,45.41,16.521,16.508,20.0]
[1673312564938,17.0,16.52,16.508,20.0]
[1673312566021,17.0,16.52,16.506,20.0]
[1673312567301,17.0,16.521,16.506,20.0]
[1673312567509,45.42,16.52,16.506,20.0]
[1673312567833,20.0,16.518,16.506,20.0]
[1673312568016,17.0,16.517,16.506,20.0]
[1673312568226,17.0,16.517,16.504,20.0]
[1673312569286,17.0,16.517,16.49,110.68]
[1673312569498,178.9457,16.516,16.493,135.897]
[1673312569704,17.0,16.515,16.495,38.82122639]
[1673312569921,17.0,16.515,16.496,20.0]
[1673312569922,65.43,16.514,16.496,20.0]
[1673312570134,20.0,16.512,16.496,20.0]
[1673312570453,62.44,16.511,16.496,20.0]
[1673312570660,62.44,16.511,16.497,20.0]
[1673312570869,62.44,16.511,16.496,20.0]
[1673312572232,62.44,16.511,16.497,20.0]
[1673312574642,62.44,16.511,16.496,20.0]
[1673312575161,62.44,16.511,16.492,6.0838512]
[1673312575162,20.0,16.51,16.492,6.0838512]
[1673312575385,182.2955,16.509,16.492,6.0838512]
[1673312575580,20.0,16.508,16.492,6.0838512]
[1673312575790,62.45,16.507,16.492,6.0838512]
[1673312576004,20.0,16.506,16.492,6.0838512]
[1673312576330,17.0,16.505,16.492,6.0838512]
[1673312576542,20.0,16.504,16.492,6.0838512]
[1673312576751,17.0,16.503,16.492,6.0838512]
[1673312578235,45.46,16.505,16.492,6.0838512]
[1673312578443,17.0,16.504,16.492,6.0838512]
[1673312579068,165.2955,16.509,16.492,13.5698512]
[1673312579279,395.0,16.532,16.493,58.82122639]
[1673312579280,45.44,16.513,16.493,58.82122639]
[1673312579597,155.5202,16.514,16.494,48.59122639]
[1673312579804,20.0,16.513,16.496,20.0]
[1673312580002,20.0,16.513,16.497,17.0]
[1673312580003,45.44,16.512,16.497,17.0]
[1673312580239,45.44,16.512,16.498,20.0]
[1673312580660,45.44,16.513,16.498,20.0]
[1673312580870,37.0,16.512,16.498,20.0]
[1673312581192,17.0,16.512,16.498,20.0]
[1673312581600,45.44,16.511,16.498,20.0]
[1673312581809,17.0,16.51,16.498,20.0]
[1673312582444,62.44,16.511,16.497,20.0]
[1673312586244,17.0,16.511,16.499,20.0]
[1673312586438,17.0,16.512,16.5,20.0]
[1673312586639,45.44,16.511,16.5,20.0]
[1673312586850,17.0,16.51,16.5,20.0]
[1673312587278,17.0,16.511,16.5,20.0]